fUSD/lending_fUSD_20250629
["ID","MTS","AMOUNT","RATE_DAILY","PERIOD"]
[368475861,1751189458459,-654.72,0.00027671,3]
[368475862,1751189458469,-630.0,0.00027671,3]
[368475863,1751189458479,-490.0,0.00027671,3]
[368475864,1751189458490,-959.58,0.00027671,3]
[368475865,1751189458500,-499.55926827,0.00027671,3]
[368475866,1751189458510,-1197.6,0.00027671,3]
[368475867,1751189458520,-490.0,0.00027671,3]
[368475868,1751189458530,-980.66,0.00027671,3]
[368475869,1751189458540,-490.0,0.00027671,3]
[368475870,1751189458550,-1680.08,0.00027671,3]
[368475871,1751189458560,-609.08,0.00027671,3]
[368475872,1751189458570,-490.0,0.00027671,3]
[368475873,1751189458581,-490.0,0.00027671,3]
[368475874,1751189458592,-490.0,0.00027671,3]
[368475875,1751189458603,-490.0,0.00027671,3]
[368475876,1751189458613,-490.0,0.00027671,3]
[368475877,1751189458624,-1305.23,0.00027671,3]
[368475878,1751189458634,-514.80993758,0.00027671,3]
[368475879,1751189458643,-926.84,0.00027671,3]
[368475880,1751189458653,-490.0,0.00027671,3]
[368475881,1751189458664,-151.560746,0.00027671,7]
[368475882,1751189458677,-686.36,0.00027671,3]
[368475883,1751189458688,-490.0,0.00027671,3]
[368475884,1751189458698,-490.0,0.00027671,3]
[368475885,1751189458708,-1288.58,0.00027671,3]
[368475886,1751189458719,-490.0,0.00027671,3]
[368475887,1751189458730,-490.0,0.00027671,3]
[368475888,1751189458740,-490.0,0.00027671,3]
[368475889,1751189458749,-490.0,0.00027671,3]
[368475890,1751189458759,-490.0,0.00027671,3]
[368475891,1751189458768,-2790.04,0.00027671,3]
[368475892,1751189458778,-490.0,0.00027671,3]
[368475893,1751189458787,-490.0,0.00027671,3]
[368475894,1751189458797,-537.75,0.00027671,3]
[368475895,1751189458807,-490.0,0.00027671,3]
[368475896,1751189458816,-1131.39,0.00027671,3]
[368475897,1751189458826,-490.0,0.00027671,3]
[368475898,1751189458836,-1124.79,0.00027671,3]
[368475899,1751189458846,-925.27,0.00027671,3]
[368475900,1751189458856,-1076.03,0.00027671,3]
[368475901,1751189458868,-490.0,0.00027671,3]
[368475902,1751189458877,-490.0,0.00027671,3]
[368475903,1751189458887,-490.0,0.00027671,3]
[368475904,1751189458897,-493.75,0.00027671,3]
[368475905,1751189458906,-490.0,0.00027671,3]
[368475906,1751189458916,-490.0,0.00027671,3]
[368475907,1751189458925,-490.0,0.00027671,3]
[368475908,1751189458935,-490.0,0.00027671,3]
[368475909,1751189458944,-2705.95,0.00027671,3]
[368475910,1751189458955,-490.0,0.00027671,3]
[368475911,1751189458965,-1813.81,0.00027671,3]
[368475912,1751189458975,-490.0,0.00027671,3]
[368475913,1751189458985,-490.0,0.00027671,3]
[368475914,1751189458995,-4639.39,0.00027671,3]
[368475915,1751189459004,-490.0,0.00027671,3]
[368475916,1751189459014,-490.0,0.00027671,3]
[368475917,1751189459024,-545.33,0.00027671,3]
[368475918,1751189459034,-524.62,0.00027671,3]
[368475919,1751189459045,-1087.87,0.00027671,3]
[368475920,1751189459056,-490.0,0.00027671,3]
[368475921,1751189459065,-1659.83,0.00027671,3]
[368475922,1751189459075,-490.0,0.00027671,3]
[368475923,1751189459084,-490.0,0.00027671,3]
[368475924,1751189459094,-490.0,0.00027671,3]
[368475925,1751189459104,-490.0,0.00027671,3]
[368475926,1751189459115,-1752.18,0.00027671,3]
[368475927,1751189459125,-490.0,0.00027671,3]
[368475928,1751189459136,-490.0,0.00027671,3]
[368475929,1751189459146,-490.0,0.00027671,3]
[368475930,1751189459157,-490.0,0.00027671,3]
[368475931,1751189459167,-1469.22,0.00027671,3]
[368475932,1751189459177,-2536.92,0.00027671,3]
[368475933,1751189459186,-579.74,0.00027671,3]
[368475934,1751189459196,-688.45,0.00027671,3]
[368475935,1751189459206,-578.1,0.00027671,3]
[368475936,1751189459216,-2115.71,0.00027671,3]
[368475937,1751189459226,-1151.73,0.00027671,3]
[368475938,1751189459236,-490.0,0.00027671,3]
[368475939,1751189459246,-600.46,0.00027671,3]
[368475940,1751189459256,-490.0,0.00027671,3]
[368475941,1751189459267,-490.0,0.00027671,3]
[368475942,1751189459276,-490.0,0.00027671,3]
[368475943,1751189459286,-490.0,0.00027671,3]
[368475944,1751189459296,-1694.37,0.00027671,3]
[368475945,1751189459305,-490.0,0.00027671,3]
[368475946,1751189459315,-490.0,0.00027671,3]
[368475947,1751189459325,-490.0,0.00027671,3]
[368475948,1751189459335,-490.0,0.00027671,3]
[368475949,1751189459345,-878.63,0.00027671,3]
[368475950,1751189459356,-737.29,0.00027671,3]
[368475951,1751189459366,-737.29,0.00027671,3]
[368475952,1751189459376,-1348.51,0.00027671,3]
[368475953,1751189459386,-2029.0,0.00027671,3]
[368475954,1751189459396,-490.0,0.00027671,3]
[368475955,1751189459685,-490.0,0.00027671,3]
[368475956,1751189459695,-490.0,0.00027671,3]
[368475957,1751189459705,-6054.23,0.00027671,3]
[368475958,1751189459716,-635.62,0.00027671,3]
[368475959,1751189459725,-490.0,0.00027671,3]
[368475960,1751189459735,-490.0,0.00027671,3]
[368475961,1751189459744,-2413.55,0.00027671,3]
[368475962,1751189459754,-1540.51,0.00027671,3]
[368475963,1751189459764,-1240.73,0.00027671,3]
[368475964,1751189459773,-3134.38,0.00027671,3]
[368475965,1751189459783,-490.0,0.00027671,3]
[368475966,1751189459793,-490.0,0.00027671,3]
[368475967,1751189459802,-490.0,0.00027671,3]
[368475968,1751189459812,-490.0,0.00027671,3]
[368475969,1751189459822,-1073.81,0.00027671,3]
[368475970,1751189459832,-490.0,0.00027671,3]
[368475971,1751189459842,-1300.54,0.00027671,3]
[368475972,1751189459851,-1759.25,0.00027671,3]
[368475973,1751189459861,-490.0,0.00027671,3]
[368475974,1751189459875,-1670.81,0.00027671,3]
[368475975,1751189459884,-490.0,0.00027671,3]
[368475976,1751189459894,-1517.47,0.00027671,3]
[368475977,1751189459903,-813.1,0.00027671,3]
[368475978,1751189459914,-8639.62,0.00027671,3]
[368475979,1751189459924,-490.0,0.00027671,3]
[368475980,1751189459935,-5159.48,0.00027671,3]
[368475981,1751189459945,-1554.24,0.00027671,3]
[368475982,1751189459954,-490.0,0.00027671,3]
[368475983,1751189459964,-3283.15,0.00027671,3]
[368475984,1751189459973,-490.0,0.00027671,3]
[368475985,1751189459983,-490.0,0.00027671,3]
[368475986,1751189459992,-1860.69,0.00027671,3]
[368475987,1751189460001,-178175.02,0.00027671,3]
[368475988,1751189460010,-490.0,0.00027671,3]
[368475989,1751189460019,-1892.11,0.00027671,3]
[368475990,1751189460029,-490.0,0.00027671,3]
[368475991,1751189460038,-490.0,0.00027671,3]
[368475992,1751189460047,-1871.0,0.00027671,3]
[368475993,1751189460057,-502.91,0.00027671,3]
[368475994,1751189460067,-268.23973494,0.00027671,3]
[368475995,1751189460076,-490.0,0.00027671,3]
[368475996,1751189460085,-627.07,0.00027671,3]
[368475997,1751189460094,-490.0,0.00027671,3]
[368475998,1751189460104,-1068.6,0.00027671,3]
[368475999,1751189460113,-3235.85,0.00027671,3]
[368476000,1751189460123,-3212.36,0.00027671,3]
[368476001,1751189460132,-490.0,0.00027671,3]
[368476002,1751189460142,-5417.35,0.00027671,3]
[368476003,1751189460151,-490.0,0.00027671,3]
[368476004,1751189460162,-771.92,0.00027671,3]
[368476005,1751189460172,-5308.46,0.00027671,3]
[368476006,1751189460182,-490.0,0.00027671,3]
[368476007,1751189460191,-490.0,0.00027671,3]
[368476008,1751189460200,-490.0,0.00027671,3]
[368476009,1751189460209,-490.0,0.00027671,3]
[368476010,1751189460219,-1407.43,0.00027671,3]
[368476011,1751189460228,-1270.52,0.00027671,3]
[368476012,1751189460237,-490.0,0.00027671,3]
[368476013,1751189460247,-4713.51,0.00027671,3]
[368476014,1751189460257,-490.0,0.00027671,3]
[368476015,1751189460267,-490.0,0.00027671,3]
[368476016,1751189460276,-490.0,0.00027671,3]
[368476017,1751189460285,-5070.98,0.00027671,3]
[368476018,1751189460295,-487.15895961,0.00027671,3]
[368476019,1751189460306,-1695.89,0.00027671,3]
[368476020,1751189460315,-490.0,0.00027671,3]
[368476021,1751189460326,-542.33,0.00027671,3]
[368476022,1751189460337,-2831.77,0.00027671,3]
[368476023,1751189460346,-2582.95,0.00027671,3]
[368476024,1751189460357,-897.74,0.00027671,3]
[368476025,1751189460366,-490.0,0.00027671,3]
[368476026,1751189460376,-3310.0,0.00027671,3]
[368476027,1751189460385,-1704.89,0.00027671,3]
[368476028,1751189460395,-455.30542955,0.00027671,3]
[368476029,1751189460404,-848.8,0.00027671,3]
[368476030,1751189460414,-1343.76,0.00027671,3]
[368476031,1751189460423,-2530.55,0.00027671,3]
[368476032,1751189460432,-490.0,0.00027671,3]
[368476033,1751189460442,-2273.22,0.00027671,3]
[368476034,1751189460451,-490.0,0.00027671,3]
[368476035,1751189460461,-3600.89,0.00027671,3]
[368476036,1751189460471,-490.0,0.00027671,3]
[368476037,1751189460481,-2664.11,0.00027671,3]
[368476038,1751189460490,-508.7361839,0.00027671,3]
[368476039,1751189460500,-1280.17,0.00027671,3]
[368476040,1751189460510,-724.5,0.00027671,3]
[368476041,1751189460520,-4295.06,0.00027671,3]
[368476042,1751189460530,-2076.16,0.00027671,3]
[368476043,1751189460539,-1658.63,0.00027671,3]
[368476044,1751189460549,-490.0,0.00027671,3]
[368476045,1751189460559,-1515.09,0.00027671,3]
[368476046,1751189460569,-2192.18,0.00027671,3]
[368476047,1751189460579,-1860.56,0.00027671,3]
[368476048,1751189460588,-1687.23,0.00027671,3]
[368476049,1751189460598,-1377.41,0.00027671,3]
[368476050,1751189460607,-490.0,0.00027671,3]
[368476051,1751189460617,-490.0,0.00027671,3]
[368476052,1751189460627,-499.56,0.00027671,3]
[368476053,1751189460636,-490.0,0.00027671,3]
[368476054,1751189460647,-3889.69,0.00027671,3]
[368476055,1751189460656,-490.0,0.00027671,3]
[368476056,1751189460667,-21657.64,0.00027671,3]
[368476057,1751189460676,-2469.4,0.00027671,3]
[368476058,1751189460686,-1928.44,0.00027671,3]
[368476059,1751189460695,-2791.01,0.00027671,3]
[368476060,1751189460705,-1878.64,0.00027671,3]
[368476061,1751189460715,-2638.52,0.00027671,3]
[368476062,1751189460725,-4731.62,0.00027671,3]
[368476063,1751189460734,-439.32874311,0.00027671,3]
[368476064,1751189460743,-401.61529758,0.00027671,3]
[368476065,1751189460753,-7724.0,0.00027671,3]
[368476066,1751189460763,-1149.76,0.00027671,3]
[368476067,1751189460773,-1281.41,0.00027671,3]
[368476068,1751189460782,-2260.24,0.00027671,3]
[368476069,1751189460792,-490.0,0.00027671,3]
[368476070,1751189460802,-2732.79,0.00027671,3]
[368476071,1751189460811,-490.0,0.00027671,3]
[368476072,1751189460821,-1943.65,0.00027671,3]
[368476073,1751189460830,-847.37,0.00027671,3]
[368476074,1751189460840,-490.0,0.00027671,3]
[368476075,1751189460850,-490.0,0.00027671,3]
[368476076,1751189460860,-1182.05,0.00027671,3]
[368476077,1751189460872,-4094.76,0.00027671,3]
[368476078,1751189460882,-490.0,0.00027671,3]
[368476079,1751189460891,-1669.82,0.00027671,3]
[368476080,1751189460901,-490.0,0.00027671,3]
[368476081,1751189460911,-490.0,0.00027671,3]
[368476082,1751189460921,-1564.06,0.00027671,3]
[368476083,1751189460931,-490.0,0.00027671,3]
[368476084,1751189460940,-490.0,0.00027671,3]
[368476085,1751189460949,-994.86,0.00027671,3]
[368476086,1751189460959,-490.0,0.00027671,3]
[368476087,1751189460969,-490.0,0.00027671,3]
[368476088,1751189460979,-8867.72,0.00027671,3]
[368476089,1751189460988,-3358.35,0.00027671,3]
[368476090,1751189460998,-1642.99,0.00027671,3]
[368476091,1751189461007,-490.0,0.00027671,3]
[368476092,1751189461017,-1861.14,0.00027671,3]
[368476093,1751189461026,-863.46,0.00027671,3]
[368476094,1751189461035,-490.0,0.00027671,3]
[368476095,1751189461045,-3023.19,0.00027671,3]
[368476096,1751189461054,-2864.14,0.00027671,3]
[368476097,1751189461063,-4054.05,0.00027671,3]
[368476098,1751189461072,-490.0,0.00027671,3]
[368476099,1751189461082,-2811.82,0.00027671,3]
[368476100,1751189461091,-4177.09,0.00027671,3]
[368476101,1751189461101,-150.0,0.00027671,2]
[368476102,1751189461110,-625.49,0.00027671,3]
[368476103,1751189461121,-503.88595502,0.00027671,3]
[368476104,1751189461133,-490.0,0.00027671,3]
[368476105,1751189461143,-833.42,0.00027671,3]
[368476106,1751189461152,-490.0,0.00027671,3]
[368476107,1751189461162,-274.92394774,0.00027671,3]
[368476108,1751189461171,-490.0,0.00027671,3]
[368476109,1751189461181,-1431.99,0.00027671,3]
[368476110,1751189461190,-1959.2,0.00027671,3]
[368476111,1751189461200,-2399.08,0.00027671,3]
[368476112,1751189461210,-151.0,0.00027671,7]
[368476113,1751189461220,-1174.99,0.00027671,3]
[368476114,1751189461229,-490.0,0.00027671,3]
[368476115,1751189461238,-151.0,0.00027671,7]
[368476116,1751189461247,-1626.5,0.00027671,3]
[368476117,1751189461257,-1212.44,0.00027671,3]
[368476118,1751189461266,-1906.14,0.00027671,3]
[368476119,1751189461275,-5689.69,0.00027671,3]
[368476120,1751189461284,-490.0,0.00027671,3]
[368476121,1751189461293,-1497.21,0.00027671,3]
[368476122,1751189461302,-967.43,0.00027671,3]
[368476123,1751189461311,-490.0,0.00027671,3]
[368476124,1751189461320,-5409.01,0.00027671,3]
[368476125,1751189461329,-1070.83,0.00027671,3]
[368476126,1751189461339,-2173.75,0.00027671,3]
[368476127,1751189461348,-209.90243204,0.00027671,3]
[368476128,1751189461357,-490.0,0.00027671,3]
[368476129,1751189461366,-1252.74,0.00027671,3]
[368476130,1751189461376,-4227.21,0.00027671,3]
[368476131,1751189461386,-564.68304594,0.00027671,3]
[368476132,1751189461397,-5889.66,0.00027671,3]
[368476133,1751189461406,-490.0,0.00027671,3]
[368476134,1751189461416,-4687.04,0.00027671,3]
[368476135,1751189461426,-1288.56,0.00027671,3]
[368476136,1751189461435,-845.86,0.00027671,3]
[368476137,1751189461447,-490.0,0.00027671,3]
[368476138,1751189461457,-517.32,0.00027671,3]
[368476139,1751189461467,-490.0,0.00027671,3]
[368476140,1751189461476,-799.14,0.00027671,3]
[368476141,1751189461485,-490.0,0.00027671,3]
[368476142,1751189461494,-490.0,0.00027671,3]
[368476143,1751189461504,-994.15,0.00027671,3]
[368476144,1751189461513,-490.0,0.00027671,3]
[368476145,1751189461523,-2552.12,0.00027671,3]
[368476146,1751189461533,-1583.68,0.00027671,3]
[368476147,1751189461542,-3873.59,0.00027671,3]
[368476148,1751189461551,-2076.18,0.00027671,3]
[368476149,1751189461560,-490.0,0.00027671,3]
[368476150,1751189461571,-11047.16,0.00027671,3]
[368476151,1751189461581,-490.0,0.00027671,3]
[368476152,1751189461592,-1813.96,0.00027671,3]
[368476153,1751189461602,-2942.99,0.00027671,3]
[368476154,1751189461612,-2251.42,0.00027671,3]
[368476155,1751189461621,-490.0,0.00027671,3]
[368476156,1751189461630,-2172.71,0.00027671,3]
[368476157,1751189461640,-490.0,0.00027671,3]
[368476158,1751189461649,-490.0,0.00027671,3]
[368476159,1751189461660,-2182.32,0.00027671,3]
[368476160,1751189461669,-2778.13,0.00027671,3]
[368476161,1751189461679,-3417.13,0.00027671,3]
[368476162,1751189461689,-714.0,0.00027671,3]
[368476163,1751189461698,-1663.2,0.00027671,3]
[368476164,1751189461708,-1404.86,0.00027671,3]
[368476165,1751189461717,-2381.16,0.00027671,3]
[368476166,1751189461726,-2307.12,0.00027671,3]
[368476167,1751189461736,-1922.2,0.00027671,3]
[368476168,1751189461746,-1602.27,0.00027671,3]
[368476169,1751189461755,-1208.44,0.00027671,3]
[368476170,1751189461765,-490.0,0.00027671,3]
[368476171,1751189461775,-2544.75,0.00027671,3]
[368476172,1751189461784,-492.824883,0.00027671,3]
[368476173,1751189461794,-2971.24,0.00027671,3]
[368476174,1751189461803,-2482.9,0.00027671,3]
[368476175,1751189461812,-1562.59,0.00027671,3]
[368476176,1751189461821,-490.0,0.00027671,3]
[368476177,1751189461831,-611.91,0.00027671,3]
[368476178,1751189461841,-490.0,0.00027671,3]
[368476179,1751189461851,-490.0,0.00027671,3]
[368476180,1751189461861,-1663.98,0.00027671,3]
[368476181,1751189461875,-506.14,0.00027671,3]
[368476182,1751189461885,-592.14603291,0.00027671,3]
[368476183,1751189461894,-200.0,0.00027671,30]
[368476184,1751189461904,-1990.19,0.00027671,3]
[368476185,1751189461914,-299.1996,0.00027671,30]
[368476186,1751189461923,-490.0,0.00027671,3]
[368476187,1751189461933,-490.0,0.00027671,3]
[368476188,1751189461944,-490.0,0.00027671,3]
[368476189,1751189461954,-3059.17,0.00027671,3]
[368476190,1751189461963,-490.0,0.00027671,3]
[368476191,1751189462080,-1945.39,0.00027671,3]
[368476192,1751189462089,-490.0,0.00027671,3]
[368476193,1751189462099,-537.75,0.00027671,3]
[368476194,1751189462109,-490.0,0.00027671,3]
[368476195,1751189462118,-1673.43,0.00027671,3]
[368476196,1751189462128,-490.0,0.00027671,3]
[368476197,1751189462140,-4122.47,0.00027671,3]
[368476198,1751189462149,-883.95,0.00027671,3]
[368476199,1751189462160,-490.0,0.00027671,3]
[368476200,1751189462171,-490.0,0.00027671,3]
[368476201,1751189462182,-1883.24,0.00027671,3]
[368476202,1751189462191,-2903.84,0.00027671,3]
[368476203,1751189462203,-492.08990123,0.00027671,3]
[368476204,1751189462213,-490.0,0.00027671,3]
[368476205,1751189462223,-490.0,0.00027671,3]
[368476206,1751189462234,-1075.76,0.00027671,3]
[368476207,1751189462244,-2086.15,0.00027671,3]
[368476208,1751189462253,-2400.12,0.00027671,3]
[368476209,1751189462264,-4515.57,0.00027671,3]
[368476210,1751189462275,-2447.74,0.00027671,3]
[368476211,1751189462285,-490.0,0.00027671,3]
[368476212,1751189462295,-1923.7,0.00027671,3]
[368476213,1751189462305,-1564.07,0.00027671,3]
[368476214,1751189462314,-14014.5,0.00027671,3]
[368476215,1751189462324,-490.0,0.00027671,3]
[368476216,1751189462333,-3865.81,0.00027671,3]
[368476217,1751189462342,-490.0,0.00027671,3]
[368476218,1751189462351,-3004.92,0.00027671,3]
[368476219,1751189462360,-1321.0,0.00027671,3]
[368476220,1751189462370,-1666.18,0.00027671,3]
[368476221,1751189462381,-490.0,0.00027671,3]
[368476222,1751189462391,-490.0,0.00027671,3]
[368476223,1751189462400,-668.73,0.00027671,3]
[368476224,1751189462409,-2780.99,0.00027671,3]
[368476225,1751189462419,-490.0,0.00027671,3]
[368476226,1751189462428,-490.0,0.00027671,3]
[368476227,1751189462438,-2017.46,0.00027671,3]
[368476228,1751189462448,-1030.63,0.00027671,3]
[368476229,1751189462458,-490.0,0.00027671,3]
[368476230,1751189462466,-153.120771,0.00027671,7]
[368476231,1751189462476,-490.0,0.00027671,3]
[368476232,1751189462485,-1877.58,0.00027671,3]
[368476233,1751189462495,-2028.91,0.00027671,3]
[368476234,1751189462504,-992.09,0.00027671,3]
[368476235,1751189462514,-490.0,0.00027671,3]
[368476236,1751189462523,-2691.62,0.00027671,3]
[368476237,1751189462532,-978.52,0.00027671,3]
[368476238,1751189462542,-16085.77,0.00027671,3]
[368476239,1751189462552,-490.0,0.00027671,3]
[368476240,1751189462561,-2803.25,0.00027671,3]
[368476241,1751189462571,-508.16626788,0.00027671,3]
[368476242,1751189462580,-1276.33,0.00027671,3]
[368476243,1751189462589,-2955.85,0.00027671,3]
[368476244,1751189462598,-490.0,0.00027671,3]
[368476245,1751189462607,-5434.91,0.00027671,3]
[368476246,1751189462615,-490.0,0.00027671,3]
[368476247,1751189462625,-1387.9,0.00027671,3]
[368476248,1751189462636,-515.66,0.00027671,3]
[368476249,1751189462645,-28203.31,0.00027671,3]
[368476250,1751189462654,-1841.28,0.00027671,3]
[368476251,1751189462662,-490.0,0.00027671,3]
[368476252,1751189462671,-4635.15,0.00027671,3]
[368476253,1751189462680,-1332.27,0.00027671,3]
[368476254,1751189462689,-490.0,0.00027671,3]
[368476255,1751189462698,-7406.74,0.00027671,3]
[368476256,1751189462707,-438.81468834,0.00027671,3]
[368476257,1751189462716,-8062.51,0.00027671,3]
[368476258,1751189462725,-22271.16,0.00027671,3]
[368476259,1751189462734,-369.36760611,0.00027671,3]
[368476260,1751189462743,-490.0,0.00027671,3]
[368476261,1751189462753,-490.0,0.00027671,3]
[368476262,1751189462762,-2790.33,0.00027671,3]
[368476263,1751189462772,-1126.58,0.00027671,3]
[368476264,1751189462781,-837.73,0.00027671,3]
[368476265,1751189462790,-2128.96,0.00027671,3]
[368476266,1751189462800,-490.0,0.00027671,3]
[368476267,1751189462809,-1587.8,0.00027671,3]
[368476268,1751189462819,-2158.24,0.00027671,3]
[368476269,1751189462828,-490.0,0.00027671,3]
[368476270,1751189462838,-156.077597,0.00027671,3]
[368476271,1751189462847,-490.0,0.00027671,3]
[368476272,1751189462856,-490.0,0.00027671,3]
[368476273,1751189462867,-6776.88,0.00027671,3]
[368476274,1751189462876,-2570.39,0.00027671,3]
[368476275,1751189462886,-1955.62,0.00027671,3]
[368476276,1751189462895,-4946.73,0.00027671,3]
[368476277,1751189462905,-633.83,0.00027671,3]
[368476278,1751189462914,-490.0,0.00027671,3]
[368476279,1751189462923,-6819.1,0.00027671,3]
[368476280,1751189462932,-1663.1,0.00027671,3]
[368476281,1751189462941,-4499.5,0.00027671,3]
[368476282,1751189462951,-490.0,0.00027671,2]
[368476283,1751189462960,-2362.36,0.00027671,3]
[368476284,1751189462969,-2317.35,0.00027671,3]
[368476285,1751189462978,-679.69,0.00027671,3]
[368476286,1751189462987,-3032.01,0.00027671,3]
[368476287,1751189462996,-543.4,0.00027671,3]
[368476288,1751189463005,-1056.86,0.00027671,3]
[368476289,1751189463014,-6384.12,0.00027671,3]
[368476290,1751189463024,-513.28,0.00027671,3]
[368476291,1751189463033,-10326.24,0.00027671,3]
[368476292,1751189463043,-2598.82,0.00027671,3]
[368476293,1751189463053,-490.0,0.00027671,3]
[368476294,1751189463062,-2716.79,0.00027671,3]
[368476295,1751189463071,-490.0,0.00027671,3]
[368476296,1751189463081,-490.0,0.00027671,3]
[368476297,1751189463090,-2312.1,0.00027671,3]
[368476298,1751189463099,-958.83,0.00027671,3]
[368476299,1751189463109,-490.0,0.00027671,3]
[368476300,1751189463118,-515.97,0.00027671,3]
[368476301,1751189463127,-490.0,0.00027671,3]
[368476302,1751189463137,-1149.31,0.00027671,3]
[368476303,1751189463147,-490.0,0.00027671,3]
[368476304,1751189463157,-1032.77,0.00027671,3]
[368476305,1751189463167,-490.0,0.00027671,3]
[368476306,1751189463177,-2269.61,0.00027671,3]
[368476307,1751189463186,-490.0,0.00027671,3]
[368476308,1751189463196,-2480.04,0.00027671,3]
[368476309,1751189463205,-2287.64,0.00027671,3]
[368476310,1751189463214,-159.72974989,0.00027673,2]
[368476311,1751189463224,-500.0,0.00027673,5]
[368476312,1751189463235,-159.727904,0.00027673,2]
[368476313,1751189463245,-159.72974989,0.00027673,2]
[368476314,1751189463254,-159.72974989,0.00027673,2]
[368476315,1751189463264,-159.727904,0.00027673,5]
[368476316,1751189463274,-159.727904,0.00027673,5]
[368476317,1751189463283,-159.72974989,0.00027673,5]
[368476318,1751189463293,-159.72974989,0.00027673,5]
[368476319,1751189463302,-159.727904,0.00027673,5]
[368476320,1751189463312,-164.72130458,0.00027673,2]
[368476321,1751189463321,-159.72974989,0.00027673,2]
[368476322,1751189463331,-500.0,0.00027673,5]
[368476323,1751189463341,-159.72974989,0.00027673,2]
[368476324,1751189463351,-159.72974978,0.00027673,2]
[368476325,1751189463360,-159.72974989,0.00027673,5]
[368476326,1751189463371,-159.727904,0.00027673,2]
[368476327,1751189463382,-159.72974989,0.00027673,5]
[368476328,1751189463393,-159.727904,0.00027673,5]
[368476329,1751189463403,-500.0,0.00027673,5]
[368476330,1751189463413,-159.72974989,0.00027673,2]
[368476331,1751189463423,-256.13504802,0.00027673,5]
[368476332,1751189463432,-500.0,0.00027673,5]
[368476333,1751189463442,-500.0,0.00027673,5]
[368476334,1751189463452,-513.90456754,0.00027673,5]
[368476335,1751189463461,-500.0,0.00027673,5]
[368476336,1751189463470,-500.0,0.00027673,5]
[368476337,1751189463480,-500.0,0.00027673,5]
[368476338,1751189463489,-154.03844298,0.00027673,5]
[368476339,1751189463498,-163.52092988,0.00027673,5]
[368476340,1751189463508,-333.88821153,0.00027673,5]
[368476341,1751189463517,-273.34954719,0.00027673,5]
[368476342,1751189463526,-500.0,0.00027673,5]
[368476343,1751189463535,-178.27246136,0.00027673,5]
[368476344,1751189464293,-140.33018868,0.00027673,5]
[368476345,1751189464304,-500.0,0.00027673,5]
[368476346,1751189464313,-500.0,0.00027673,5]
[368476347,1751189464323,-500.0,0.00027673,5]
[368476348,1751189464334,-500.0,0.00027673,5]
[368476349,1751189464345,-292.09981132,0.00027673,5]
[368476350,1751189466585,-586.11,0.00027397,3]
[368476351,1751189466595,-771.46,0.00027397,3]
[368476352,1751189466604,-1968.22655237,0.0002748,2]
[368476353,1751189466614,-490.0,0.0002767,3]
[368476354,1751189466624,-2504.7,0.00027671,3]
[368476355,1751189466634,-15290.4,0.00027671,3]
[368476356,1751189466644,-586.11,0.00027671,3]
[368476357,1751189466653,-771.46,0.00027671,3]
[368476358,1751189466664,-207.90018868,0.00027673,5]
[368476359,1751189466674,-159.72974989,0.00027673,5]
[368476360,1751189466683,-161.69126146,0.00027673,5]